bitfinex/quotes_ETHUSD_20241203
["timestamp","ask_amount","ask_price","bid_price","bid_amount"]
[1733190107542,1.5666,3639.0,3638.2,0.04883445]
[1733190107782,0.42184677,3638.9,3637.6,1.6188]
[1733190107981,0.42184677,3638.9,3638.3,0.04914427]
[1733190108190,0.42184677,3638.9,3637.6,1.6188]
[1733190108372,0.54291897,3638.6,3637.6,1.6188]
[1733190108557,1.6136,3638.5,3637.7,0.04919675]
[1733190111258,1.8292519,3638.5,3637.7,0.04919675]
[1733190111850,1.8292519,3638.5,3637.7,0.28720679]
[1733190112173,1.6136,3638.5,3637.7,0.04919675]
[1733190115704,1.5405,3638.3,3637.7,0.04919675]
[1733190115910,0.03436148,3638.2,3637.7,0.04919675]
[1733190116111,1.6136,3638.1,3637.7,0.04919675]
[1733190116327,1.6136,3638.1,3636.9,1.6414]
[1733190116821,0.55031031,3637.9,3637.0,0.0462104]
[1733190117024,0.55031031,3637.9,3637.0,0.3211104]
[1733190117328,1.6384,3637.8,3637.0,0.3211104]
[1733190117486,1.6384,3637.8,3637.0,0.0462104]
[1733190117882,1.6384,3637.8,3635.8,0.29783847]
[1733190117883,1.6384,3637.6,3636.3,1.6392]
[1733190118220,0.03436966,3637.7,3636.3,1.6392]
[1733190118221,1.57,3637.4,3637.1,0.04576336]
[1733190118519,1.57,3637.4,3636.3,1.6392]
[1733190118840,1.57,3637.4,3636.4,0.16392]
[1733190119128,1.57,3637.4,3636.4,0.20841749]
[1733190120920,1.57,3637.4,3636.5,0.2749]
[1733190121131,1.6355,3637.8,3636.6,2.1846]
[1733190121359,1.6355,3637.8,3636.6,2.22915197]
[1733190121531,1.6355,3637.8,3636.7,3.5667972]
[1733190121731,1.6355,3637.8,3636.8,0.2749]
[1733190121921,1.6355,3637.8,3636.8,0.31943447]
[1733190122764,1.6355,3637.8,3636.9,1.7999]
[1733190123081,1.6355,3637.8,3637.0,0.04451696]
[1733190123221,1.6355,3637.8,3637.1,0.1844417]
[1733190123624,1.6355,3637.8,3637.2,0.04300191]
[1733190124377,1.6415,3638.5,3637.2,0.04300191]
[1733190124540,1.6415,3638.5,3637.4,1.5642]
[1733190124741,1.6415,3638.5,3637.6,3.0]
[1733190124950,1.6415,3638.5,3637.5,0.04138327]
[1733190125155,1.6415,3638.5,3637.7,0.04136064]
[1733190125354,1.6415,3638.5,3637.6,0.04136938]
[1733190125553,1.6415,3638.5,3637.8,0.04135189]
[1733190125751,1.6415,3638.5,3637.7,0.04136064]
[1733190125954,1.6062,3639.0,3638.0,1.5576]
[1733190126242,1.76682,3639.0,3638.1,0.04123311]
[1733190127067,0.55983381,3638.8,3638.1,0.04123311]
[1733190127379,1.6143,3638.6,3638.1,0.04123311]
[1733190127888,1.6143,3638.6,3637.1,1.5442]
[1733190128179,1.6143,3638.6,3637.2,0.04114736]
[1733190128381,1.6306,3638.4,3637.2,0.04114736]
[1733190129887,1.6306,3638.4,3637.2,0.04114736]
[1733190130682,0.54387629,3638.1,3637.2,0.04114736]
[1733190131380,1.5224,3638.0,3637.2,0.04114736]
[1733190131543,0.03436515,3637.9,3637.2,0.04114736]
[1733190132243,0.03436508,3637.9,3637.2,0.04114736]
[1733190132451,0.21006414,3637.8,3637.2,0.04114736]
[1733190132803,1.5224,3638.0,3637.2,0.04114736]
[1733190132804,1.6206,3638.3,3637.3,1.5755]
[1733190133151,1.6206,3638.3,3637.4,0.03987365]
[1733190133649,0.53899381,3638.2,3637.4,0.03987365]
[1733190135397,1.6206,3638.3,3637.4,0.03987365]
[1733190135577,1.6206,3638.3,3637.5,0.18902737]
[1733190135776,1.5991,3638.6,3637.5,0.18902737]
[1733190135991,1.5991,3638.6,3637.6,0.03718168]
[1733190136268,0.55054957,3638.3,3637.6,0.03718168]
[1733190136423,1.5991,3638.2,3637.6,0.03718168]
[1733190136586,0.21496496,3638.1,3637.3,1.5755]
[1733190137097,0.21496496,3638.1,3637.4,0.31209918]
[1733190137821,1.5991,3638.2,3637.4,0.31209918]
[1733190140402,1.5991,3638.2,3637.4,0.03719918]
[1733190140598,3.20241731,3638.3,3637.4,0.03719918]
[1733190140599,1.5687,3637.8,3637.4,0.03719918]
[1733190140798,0.03436975,3637.7,3635.6,1.100304]
[1733190141118,1.5687,3637.6,3635.8,1.5266]
[1733190141282,1.5687,3637.6,3636.0,1.5441]
[1733190141481,1.5687,3637.6,3636.4,0.2749]
[1733190141722,0.55146532,3637.3,3636.5,0.03631051]
[1733190142282,1.5687,3637.6,3636.5,0.03631051]
[1733190142283,1.5687,3637.6,3636.7,0.2749]
[1733190142495,2.01761915,3637.6,3636.8,0.03641279]
[1733190142923,0.44891915,3637.6,3636.8,0.03641279]
[1733190143086,0.54112053,3637.6,3636.8,0.03641279]
[1733190143286,0.54112053,3637.6,3636.7,0.2749]
[1733190143501,0.54112053,3637.6,3636.8,0.03648993]
[1733190143763,0.54112053,3637.6,3636.7,0.2749]
[1733190144025,0.57548815,3637.6,3636.7,0.2749]
[1733190144226,1.6252,3637.5,3636.8,0.03648993]
[1733190144428,0.22006882,3637.4,3636.8,0.03648993]
[1733190144722,0.22006882,3637.4,3636.6,1.5258]
[1733190145103,0.22006882,3637.4,3636.7,0.03651411]
[1733190145828,0.22006882,3637.4,3636.6,1.5258]
[1733190146632,0.22006882,3637.4,3636.6,0.22824324]
[1733190146827,0.23863894,3637.3,3636.3,1.8992]
[1733190147292,0.23863894,3637.3,3636.4,0.03654037]
[1733190149245,0.23863894,3637.3,3635.8,0.70390188]
[1733190149445,0.66681316,3637.2,3636.5,0.0353136]
[1733190149651,0.66681316,3637.1,3635.7,0.55]
[1733190149814,0.25639215,3637.0,3635.7,0.55]
[1733190150024,0.25639215,3636.9,3635.9,0.55]
[1733190150316,0.25639215,3636.8,3636.0,0.03535738]
[1733190150506,0.23863894,3637.3,3636.0,0.03535738]
[1733190150704,0.7489365,3637.2,3636.0,0.03535738]
[1733190150936,0.25632373,3637.1,3636.0,0.03535738]
[1733190151103,1.6455,3637.0,3636.0,0.03535738]
[1733190151303,1.6455,3637.0,3635.6,4.100304]
[1733190151504,1.9362003,3637.0,3635.7,0.0348601]
[1733190151747,1.6455,3636.8,3635.7,0.0348601]
[1733190151903,1.93620613,3636.7,3635.7,0.0348601]
[1733190152102,1.6455,3636.2,3635.1,1.100656]
[1733190152305,1.6455,3636.2,3635.2,0.03376265]
[1733190152745,1.90144197,3636.2,3635.2,0.03376265]
[1733190153047,0.510051,3636.1,3635.2,0.03376265]
[1733190153200,0.03438396,3636.0,3635.2,0.03376265]
[1733190153403,0.510051,3636.1,3635.2,0.03376265]
[1733190153404,0.76571378,3636.1,3635.2,0.03376265]
[1733190153905,0.25566278,3636.1,3635.2,0.03376265]
[1733190154207,1.6455,3636.2,3635.2,0.03376265]
[1733190154429,1.539,3636.0,3635.2,0.03376265]
[1733190154632,1.539,3635.9,3635.2,0.03376265]
[1733190155076,1.539,3635.9,3634.7,1.6269]
[1733190155274,0.1573387,3635.8,3635.3,0.03203288]
[1733190155572,1.57338806,3635.7,3634.7,0.23436991]
[1733190155782,1.57338806,3635.7,3634.4,1.6269]
[1733190155931,1.57338806,3635.7,3634.8,0.03207669]
[1733190156133,1.57338806,3635.7,3633.7,2.65186774]
[1733190156330,1.539,3635.5,3634.9,0.03206792]
[1733190156587,1.539,3635.5,3633.8,1.89208677]
[1733190156734,1.539,3635.9,3634.2,1.6269]
[1733190156930,0.55419026,3635.7,3634.2,1.6269]
[1733190157234,0.55419026,3635.7,3634.3,1.65993139]
[1733190157434,0.55419026,3635.7,3634.4,2.05807991]
[1733190157869,0.55419026,3635.7,3634.6,0.55]
[1733190158056,0.03438665,3635.6,3634.6,0.55]
[1733190158261,0.03438665,3635.6,3634.7,0.03299633]
[1733190158886,0.55419026,3635.7,3634.7,0.03299633]
[1733190159170,0.03438664,3635.6,3634.7,0.03299633]
[1733190159373,0.03438664,3635.6,3634.7,0.30789633]
[1733190159745,1.539,3635.5,3634.7,0.03299633]
[1733190159950,1.539,3635.5,3634.7,0.26066111]
[1733190160154,1.539,3635.5,3634.7,0.03299633]
[1733190161234,1.539,3635.5,3634.5,0.2749]
[1733190161235,1.74831903,3635.5,3634.5,0.2749]
[1733190161439,1.74831903,3635.5,3634.8,0.03291034]
[1733190161640,1.74831903,3635.5,3634.5,0.2749]
[1733190161836,1.74831903,3635.5,3634.9,0.03290158]
[1733190162071,1.74831903,3635.5,3634.5,3.50711715]
[1733190162562,1.74831903,3635.5,3634.6,0.03292787]
[1733190163253,1.539,3635.5,3634.6,0.03292787]
[1733190164705,0.55419026,3635.7,3634.8,1.6243]
[1733190164885,2.65186774,3636.7,3635.0,1.6243]
[1733190164886,0.55490705,3635.9,3635.0,1.6243]
[1733190165084,0.55490705,3635.9,3635.1,0.03319806]
[1733190166979,0.55490705,3635.9,3635.1,0.26301569]
[1733190167290,0.55490705,3635.9,3635.2,0.57122157]
[1733190167502,0.55490705,3635.9,3635.3,0.03304155]
[1733190167653,0.55490705,3635.9,3635.4,0.03080868]
[1733190167853,0.55490705,3635.9,3635.0,1.6243]
[1733190168188,0.55490705,3635.9,3635.1,0.19208358]
[1733190168855,0.55490705,3635.9,3635.1,0.46698358]
[1733190169506,2.65186774,3637.1,3635.2,3.55]
[1733190169507,1.6091,3636.5,3635.2,3.55]
[1733190169685,1.6091,3636.5,3635.1,0.46698358]
[1733190169686,1.6091,3636.5,3635.4,0.55]
[1733190169880,1.6091,3636.5,3635.6,1.5259]
[1733190170098,1.6091,3636.5,3635.7,0.02957015]
[1733190170302,0.03437747,3636.4,3635.7,0.02957015]
[1733190170518,1.5197,3636.3,3635.2,1.5202]
[1733190170682,1.5197,3636.3,3635.3,0.02948681]
[1733190171021,0.15197,3636.2,3635.2,1.5202]
[1733190171374,1.5197,3636.1,3635.3,0.02948681]
[1733190171579,2.06184893,3635.7,3635.3,0.02948681]
[1733190171892,2.06184893,3635.7,3635.3,0.2749]
[1733190172109,1.5197,3635.6,3634.0,1.5202]
[1733190172277,1.5197,3635.4,3634.1,0.02959196]
[1733190172481,1.5197,3635.3,3634.1,0.02959196]
[1733190172673,2.68626215,3635.4,3633.8,0.2749]
[1733190172674,1.5197,3635.1,3633.8,0.2749]
[1733190172872,1.55409583,3635.0,3633.9,0.02865092]
[1733190174015,1.5197,3635.0,3633.9,0.02865092]
[1733190174220,1.5197,3635.0,3634.0,0.2749]
[1733190174516,1.5197,3635.0,3634.1,0.02863338]
[1733190174879,1.5197,3635.0,3634.3,3.2749]
[1733190175078,0.54836977,3634.8,3634.4,0.02860709]
[1733190176074,0.54836977,3634.8,3634.3,3.2749]
[1733190176280,0.54836977,3634.8,3634.4,0.02895726]
[1733190176597,0.54836977,3634.8,3634.3,0.2749]
[1733190176906,0.54836977,3634.8,3634.4,0.02895726]
[1733190177707,0.54836977,3634.8,3633.9,0.20578003]
[1733190177891,1.5197,3635.3,3634.2,0.55]
[1733190178090,1.5197,3635.3,3634.3,1.54916602]
[1733190178295,1.5197,3635.3,3634.4,0.55]
[1733190178501,1.5197,3635.3,3634.5,0.02959715]
[1733190179623,0.25603595,3635.2,3634.5,0.02959715]
[1733190179934,1.47067428,3635.3,3634.6,0.53746971]
[1733190180146,0.25603021,3635.2,3634.7,0.02842506]
[1733190180442,0.15197,3636.2,3634.7,0.02842506]
[1733190180443,0.18635625,3636.2,3634.7,0.57842506]
[1733190180651,0.25610554,3636.1,3634.7,0.02842506]
[1733190180831,0.25610554,3636.0,3634.8,1.6421]
[1733190181146,0.15197,3636.2,3634.9,0.19536222]
[1733190181713,0.15197,3636.2,3635.0,0.55]
[1733190181955,1.5842,3636.1,3635.1,0.02638014]
[1733190182296,1.5842,3636.1,3634.7,0.23845403]
[1733190182546,1.5842,3636.1,3634.8,0.02631927]
[1733190182741,1.74262,3636.1,3634.8,0.29413797]
[1733190183097,0.56211632,3635.9,3634.8,0.29413797]
[1733190183302,1.5842,3636.1,3635.0,2.65186774]
[1733190183503,1.6661,3636.9,3635.1,0.02629298]
[1733190183744,1.6661,3636.9,3635.0,2.65186774]
[1733190183946,0.4352351,3636.8,3635.1,3.31945864]
[1733190184127,0.54383791,3636.1,3635.1,3.31945864]
[1733190184447,0.4352351,3636.8,3635.2,0.02617612]
[1733190184745,0.4352351,3636.8,3635.2,0.57617612]
[1733190184951,0.4352351,3636.8,3635.5,3.0]
[1733190185240,1.6661,3636.9,3635.5,3.66537439]
[1733190185411,1.6661,3636.9,3635.7,0.1508]
[1733190185800,1.6661,3636.9,3635.8,0.02596401]
[1733190185999,0.25621541,3636.8,3635.8,0.02596401]
[1733190186204,0.25621541,3636.7,3635.8,0.02596401]
[1733190186446,0.25621541,3636.6,3635.9,3.0]
[1733190186617,0.2561258,3636.5,3636.0,0.58286318]
[1733190186942,0.55892311,3637.0,3636.0,0.60782131]
[1733190187102,0.25606925,3636.9,3635.8,2.31562946]
[1733190187302,0.25606925,3636.8,3635.8,2.31562946]
[1733190187499,0.25606925,3636.7,3635.8,2.31562946]
[1733190187732,0.25606925,3636.6,3635.9,0.24664295]
[1733190187935,0.255985,3636.5,3635.9,0.24664295]
[1733190188114,0.55892311,3637.0,3635.9,0.24664295]
[1733190188115,0.255985,3636.9,3635.9,0.24664295]
[1733190188316,0.55892311,3637.0,3636.0,0.55]
[1733190188515,0.25594067,3636.9,3636.0,0.55]
[1733190188732,1.5919,3637.2,3635.9,0.24664295]
[1733190188945,0.25596641,3637.1,3635.8,2.31562946]
[1733190189147,1.5919,3637.2,3635.8,5.31562946]
[1733190189524,0.25585672,3637.1,3635.8,5.31562946]
[1733190189852,0.25585672,3637.0,3635.8,5.31562946]
[1733190190056,2.15283647,3637.2,3635.8,5.31562946]
[1733190190348,0.47107554,3637.1,3635.8,5.31562946]
[1733190190553,0.21528365,3637.1,3635.8,5.31562946]
[1733190190751,1.5274,3636.9,3635.7,0.38831029]
[1733190191852,1.5632,3636.7,3635.7,0.38831029]
[1733190192850,1.5632,3636.7,3635.7,3.04017803]
[1733190193170,1.5632,3636.7,3635.8,3.0]
[1733190197261,1.5632,3636.7,3635.9,0.2749]
[1733190198536,1.69667792,3636.6,3635.7,0.23751029]
[1733190198873,1.6623,3636.6,3635.6,0.2749]
[1733190199933,1.6623,3636.6,3635.7,2.80266774]
[1733190200146,1.6623,3636.6,3635.8,3.0]
[1733190200481,1.6623,3636.6,3635.9,0.2749]
[1733190201249,1.6623,3636.6,3635.9,0.90577734]
[1733190203482,1.6623,3636.6,3635.9,0.2749]
[1733190203643,0.03437725,3636.5,3635.6,0.50610568]
[1733190203846,0.03437725,3636.5,3635.1,0.1508]
[1733190203847,1.5092,3636.4,3635.1,0.1508]
[1733190204178,0.2897145,3637.1,3635.1,0.1508]
[1733190204179,1.54357915,3636.3,3635.1,0.23711024]
[1733190204378,1.5092,3636.1,3634.5,2.65186774]
[1733190204533,1.5092,3636.1,3634.4,0.1508]
[1733190204534,1.5318,3635.9,3634.4,0.1508]
[1733190204733,1.5318,3635.7,3634.5,0.2749]
[1733190204975,1.5318,3635.7,3634.3,2.8832597]
[1733190204976,1.5318,3635.5,3634.6,0.2749]
[1733190205137,0.0343884,3635.4,3634.6,0.2749]
[1733190205340,0.0343884,3635.4,3634.2,2.65186774]
[1733190205539,0.0343884,3635.4,3634.3,0.26518677]
[1733190205784,1.5318,3635.5,3634.3,0.26518677]
[1733190205967,1.5318,3635.5,3634.4,0.2749]
[1733190206142,1.5661884,3635.5,3634.4,0.2749]
[1733190206839,1.5661884,3635.5,3633.9,0.2749]
[1733190207039,1.5408,3635.3,3633.9,0.56757677]
[1733190208376,1.5408,3635.3,3633.9,0.52535122]
[1733190208695,1.5408,3635.3,3633.9,3.52535122]
[1733190209044,1.88446977,3635.2,3633.9,3.52535122]
[1733190209387,1.6291,3635.2,3633.9,3.52535122]
[1733190209547,1.84117643,3635.2,3634.0,0.6177219]
[1733190209741,1.536,3635.1,3634.0,0.6177219]
[1733190211481,1.536,3635.1,3632.2,2.65186774]
[1733190211482,1.5717,3634.3,3632.2,2.65186774]
[1733190211686,1.5717,3634.1,3632.2,2.65186774]
[1733190212219,1.5717,3634.1,3632.3,2.65186774]
[1733190212366,1.99749733,3634.1,3632.7,2.65186774]
[1733190212566,2.12456621,3634.1,3632.7,2.65186774]
[1733190213192,1.5717,3634.1,3632.7,2.65186774]
[1733190213480,1.5717,3634.1,3633.1,2.65186774]
[1733190213675,1.5717,3634.1,3633.6,3.0]
[1733190215174,0.54763438,3634.9,3633.6,3.0]
[1733190215175,1.5646,3634.4,3633.6,3.0]
[1733190215378,1.5646,3634.4,3633.7,0.56518677]
[1733190216573,1.5646,3634.4,3633.8,0.03344056]
[1733190217626,1.5646,3634.4,3633.9,0.02576547]
[1733190217834,1.5646,3634.4,3633.3,0.55]
[1733190218001,1.5646,3634.4,3634.0,0.0257567]
[1733190218206,1.5646,3634.4,3633.6,3.0]
[1733190218533,1.5646,3634.4,3634.1,0.02565005]
[1733190218689,0.21207643,3635.2,3633.7,0.56518677]
[1733190218690,1.5263,3635.1,3633.7,0.56518677]
[1733190218887,1.5263,3635.1,3634.2,0.02564128]
[1733190219093,1.5263,3635.1,3633.7,0.56518677]
[1733190219328,1.5263,3635.1,3634.3,0.02563252]
[1733190219499,1.5263,3635.1,3633.7,0.56518677]
[1733190219500,0.22768272,3635.0,3633.7,0.56518677]
[1733190219702,1.5263,3635.1,3633.7,0.56518677]
[1733190219901,1.5263,3635.1,3633.8,0.02567635]
[1733190220695,0.03439084,3635.0,3633.8,0.57567635]
[1733190220938,0.03439084,3635.0,3634.4,3.0]
[1733190221143,0.03439084,3635.0,3633.8,0.57567635]
[1733190221348,0.03439084,3635.0,3634.5,0.02549651]
[1733190221494,1.5263,3635.1,3634.0,0.55]
[1733190221695,0.03439085,3635.0,3633.7,0.55]
[1733190221935,1.5263,3635.1,3634.1,0.02550581]
[1733190222100,1.5263,3635.1,3634.0,0.2749]
[1733190222302,1.5263,3635.1,3634.2,0.02548674]
[1733190222637,1.5263,3635.1,3634.3,0.02547798]
[1733190223142,1.73277507,3635.1,3633.8,0.2749]
[1733190223638,1.73277507,3635.1,3633.9,0.02545638]
[1733190224404,1.5263,3635.1,3634.0,0.2749]
[1733190224643,1.5263,3635.1,3634.0,0.30034762]
[1733190226496,0.03439098,3635.0,3634.0,0.02544762]
[1733190226630,1.6025,3634.9,3634.0,0.2749]
[1733190226836,0.03439147,3634.8,3634.1,0.02543885]
[1733190227143,1.6025,3634.7,3634.1,0.02543885]
[1733190227358,1.53699646,3634.6,3634.1,0.02543885]
[1733190227506,1.53699646,3634.6,3632.7,2.65186774]
[1733190227507,1.53699646,3634.6,3633.4,0.2749]
[1733190227803,1.53699646,3634.6,3632.8,0.2749]
[1733190228003,1.53699646,3634.6,3632.9,0.03676196]
[1733190228203,1.5026,3634.4,3633.1,0.2749]
[1733190228444,1.5026,3634.4,3633.2,0.03672249]
[1733190228615,1.5752,3634.1,3633.2,0.03672249]
[1733190232866,1.5752,3634.1,3632.7,2.65186774]
[1733190232867,1.5752,3634.1,3633.3,0.03337212]
[1733190233042,1.5579,3633.9,3632.7,2.65186774]
[1733190233240,0.25540923,3633.8,3632.8,0.55]
[1733190233548,0.25540923,3633.7,3632.9,0.32018677]
[1733190233743,0.25540923,3633.6,3632.9,0.32018677]
[1733190233987,0.25540923,3633.5,3632.9,0.32018677]
[1733190234168,1.633,3633.4,3632.6,0.55]
[1733190234344,1.633,3633.4,3632.4,0.55]
[1733190235172,1.633,3633.4,3632.4,3.55]
[1733190235583,2.65186774,3634.5,3632.4,3.55]
[1733190235584,2.65186774,3632.9,3632.4,0.22852515]
[1733190235764,2.65186774,3632.9,3630.1,1.3298]
[1733190235765,0.55632515,3632.5,3630.6,2.65186774]
[1733190236090,0.55632515,3632.5,3630.8,1.3298]
[1733190237346,0.03441804,3632.4,3630.8,1.3298]
[1733190238576,1.5307,3632.3,3630.8,1.3298]
[1733190238775,1.5307,3632.1,3630.8,1.56129015]
[1733190239242,1.5307,3632.1,3631.1,3.0]
[1733190239448,1.5307,3632.1,3631.2,0.56518677]
[1733190241050,0.03441832,3632.0,3631.2,0.56518677]
[1733190241662,1.5307,3632.1,3631.2,0.56518677]
[1733190242493,1.5307,3632.1,3631.2,0.8001445]
[1733190244217,1.5307,3632.1,3631.5,3.0]
[1733190244364,1.5027,3633.3,3632.6,8.86]
[1733190244560,2.65186774,3633.7,3632.6,8.86]
[1733190244561,0.03441084,3633.2,3632.6,8.86]
[1733190244764,1.5027,3633.1,3632.6,8.86]
[1733190245315,2.04240642,3633.1,3632.6,8.86]
[1733190245458,1.5058,3633.0,3632.6,8.86]
[1733190246076,1.5058,3632.8,3632.6,9.09834599]
[1733190246284,1.71379173,3632.8,3632.6,8.86]
[1733190246612,1.5058,3632.6,3631.1,3.0]
[1733190246956,1.5058,3632.6,3631.3,0.2749]
[1733190247569,1.5058,3632.5,3631.3,0.2749]
[1733190249198,1.6656,3632.2,3630.9,0.8249]
[1733190249367,1.6445,3632.0,3630.9,0.8249]
[1733190251208,0.03441932,3631.9,3630.9,0.8249]
[1733190251417,1.50534362,3632.0,3631.3,0.2749]
[1733190251704,1.50534362,3632.0,3631.2,0.55]
[1733190251705,0.52174362,3632.0,3631.5,3.2749]
[1733190251859,1e-08,3632.0,3631.7,0.2749]
[1733190252057,1e-08,3632.0,3631.9,0.2749]
[1733190254923,0.03430819,3632.9,3631.9,0.2749]
[1733190257017,0.53992834,3633.0,3631.9,0.2749]
[1733190257174,0.53992834,3633.0,3631.9,0.50554769]
[1733190257175,0.03430819,3632.9,3631.9,0.50554769]
[1733190257372,0.03430819,3632.9,3632.1,0.2749]
[1733190258020,1.5294,3632.8,3632.1,0.2749]
[1733190258183,0.03430819,3632.7,3632.1,0.2749]
[1733190258528,0.03430819,3632.7,3631.7,0.2749]
[1733190259432,0.25561588,3632.6,3631.7,0.2749]
[1733190259581,1.5294,3632.8,3631.9,0.2749]
[1733190259929,0.2556137,3632.7,3631.9,0.2749]
[1733190260079,0.2556137,3632.8,3631.9,0.2749]
[1733190260278,0.53992834,3633.0,3631.9,0.2749]
[1733190260279,0.53992834,3633.0,3632.3,1.8244]
[1733190260709,0.40899119,3633.7,3632.3,1.8244]
[1733190260990,0.40899119,3633.6,3632.5,0.2749]
[1733190261321,0.40899119,3633.5,3632.5,0.2749]
[1733190261505,0.55175985,3633.5,3632.5,0.2749]
[1733190262430,0.03430819,3633.4,3632.5,0.2749]
[1733190263090,1.5636,3633.3,3632.5,0.2749]
[1733190263291,1.5636,3633.2,3632.4,0.2749]
[1733190264218,1.5636,3633.2,3632.5,0.2749]
[1733190264730,1.59790819,3633.2,3632.5,0.2749]
[1733190264883,1.5636,3633.2,3632.5,0.2749]
[1733190265528,1.5636,3633.2,3632.6,0.2749]
[1733190265680,1.6492,3633.0,3632.6,0.2749]
[1733190266110,1.6492,3633.0,3631.4,3.58259126]
[1733190266325,1.6492,3633.0,3631.5,0.2749]
[1733190268030,1.6492,3633.0,3631.6,0.02752974]
[1733190268348,1.6492,3633.0,3631.8,0.2749]
[1733190269005,1.6492,3633.0,3632.2,0.2749]
[1733190273328,0.55175985,3633.5,3632.2,2.92676774]
[1733190273520,0.03430819,3633.4,3632.4,0.2749]
[1733190273720,0.55175985,3633.5,3632.4,0.2749]
[1733190273957,0.32036276,3633.4,3632.4,0.2749]
[1733190274119,0.03430819,3633.3,3632.4,0.2749]
[1733190274436,0.03430819,3633.3,3632.3,0.2749]
[1733190275561,0.03430819,3633.3,3631.9,0.2749]
[1733190276259,1.6489,3632.7,3631.9,0.2749]
[1733190276468,1.6489,3632.7,3632.1,0.2749]
[1733190279861,1.6489,3632.7,3631.9,0.2749]
[1733190280176,0.03430819,3632.6,3631.9,0.2749]
[1733190281254,2.12527268,3633.0,3632.1,0.2749]
[1733190281422,2.12527268,3633.0,3632.3,3.2749]
[1733190281423,1.5786,3633.0,3632.3,3.2749]
[1733190281625,0.03430819,3632.9,3632.3,0.2749]
[1733190282355,0.03430819,3632.9,3632.1,0.2749]
[1733190282736,1.5786,3633.0,3632.1,0.2749]
[1733190285564,1.5786,3633.0,3632.0,0.2749]
[1733190286371,1.5786,3633.0,3631.5,3.0]
[1733190286372,0.03430819,3632.9,3632.5,3.0]
[1733190286523,0.03430819,3632.9,3632.4,0.2749]
[1733190287868,2.65186774,3632.7,3632.4,0.2749]
[1733190288163,0.03430819,3632.6,3632.4,0.2749]
[1733190288571,0.03430819,3632.6,3631.2,0.2749]
[1733190288733,0.03430819,3632.6,3631.4,0.2749]
[1733190289380,0.03430819,3632.6,3631.6,0.2749]
[1733190292089,1.5902,3632.5,3631.6,0.2749]
[1733190294588,1.4027,3632.5,3631.6,0.2749]
[1733190294874,0.80210001,3632.5,3631.8,0.2749]
[1733190296855,0.54010001,3632.5,3631.8,0.2749]
[1733190297373,2.65186774,3632.7,3631.8,0.2749]
[1733190297592,2.65186774,3632.7,3632.5,3.2749]
[1733190297991,2.65186774,3632.7,3632.5,0.2749]
[1733190299463,2.65186774,3632.7,3632.2,0.2749]
[1733190300269,4.17996774,3632.7,3632.2,0.2749]
[1733190300859,1.5281,3632.7,3632.2,0.2749]
[1733190301782,1.5281,3632.7,3631.4,0.2749]
[1733190302112,2.65186774,3633.1,3631.8,0.2749]
[1733190302323,0.55,3633.0,3632.0,0.2749]
[1733190304008,0.53825353,3633.0,3632.0,0.2749]
[1733190304212,1.14069507,3634.1,3632.3,0.2749]
[1733190304415,2.65186774,3633.6,3632.3,0.2749]
[1733190304626,2.65186774,3633.2,3632.5,0.2749]
[1733190304773,0.56088771,3633.6,3632.5,0.2749]
[1733190304774,2.65186774,3632.9,3632.5,0.2749]
[1733190305103,1.6485,3632.7,3632.5,0.2749]
[1733190305491,0.03430819,3632.6,3632.5,0.2749]
[1733190305997,1.6485,3632.7,3632.5,3.2749]
[1733190306207,0.55,3632.6,3632.5,0.2749]
[1733190306589,0.55,3632.6,3632.3,0.2749]
[1733190306973,2.65186774,3632.5,3632.3,0.2749]
[1733190307215,0.55,3632.4,3632.3,0.2749]
[1733190307729,0.55,3632.4,3631.8,0.2749]
[1733190307876,0.55,3632.4,3631.8,0.48704838]
[1733190308427,0.55,3632.4,3631.8,0.2749]
[1733190313306,0.55,3632.6,3631.8,0.2749]
[1733190313509,2.17849357,3633.0,3631.9,1.93852945]
[1733190313718,4.28196774,3633.3,3631.9,1.93852592]
[1733190313927,4.28196774,3633.3,3632.2,1.9313]
[1733190314122,8.29,3632.4,3632.2,1.9313]
[1733190317232,8.29,3632.4,3632.0,0.2749]
[1733190317529,8.29,3632.4,3632.0,0.50502296]
[1733190317729,0.55,3632.3,3632.0,0.50502296]
[1733190318369,0.55,3632.3,3632.0,0.23012296]
[1733190318530,0.55,3632.3,3632.0,0.2749]
[1733190319445,0.5772,3632.3,3632.0,0.2749]
[1733190319775,1.6397,3632.2,3631.1,0.287434]
[1733190319994,1.6397,3632.2,3630.4,1.101841]
[1733190319995,1.6397,3631.0,3630.4,1.101841]
[1733190320133,0.55,3630.4,3629.6,0.28746407]
[1733190320475,0.5772,3630.4,3629.6,0.51812432]
[1733190320625,0.5772,3630.4,3629.6,0.79302432]
[1733190320830,0.5772,3630.4,3629.7,0.23422243]
[1733190322678,0.5772,3630.4,3629.8,0.02754506]
[1733190322842,0.5772,3630.4,3629.7,0.26176689]
[1733190323411,0.5772,3630.4,3629.7,0.23422243]
[1733190324232,0.5772,3630.4,3629.8,0.0275445]
[1733190325085,0.5772,3630.4,3629.6,4.06053632]
[1733190325287,0.0272,3630.4,3629.6,4.06053632]
[1733190328055,0.0272,3630.4,3629.9,3.0]
[1733190328298,0.0272,3630.4,3630.3,2.65186774]
[1733190328499,0.0272,3630.4,3630.3,5.67940634]
[1733190328708,0.0272,3630.4,3630.3,7.18750634]
[1733190328859,1.5196,3631.8,3630.3,7.15996774]
[1733190329055,8.29,3632.4,3631.0,1.6531]
[1733190329387,1.6052,3632.3,3631.2,3.0]
[1733190329785,8.29,3632.4,3631.2,3.02753052]
[1733190329971,8.29,3632.4,3631.2,3.0]
[1733190330711,0.0272,3632.3,3631.2,3.0]
[1733190331314,0.5772,3632.3,3631.2,3.0]
[1733190332020,0.5772,3632.3,3631.3,0.2749]
[1733190332226,0.5772,3632.3,3631.3,0.33839349]
[1733190333117,0.5772,3632.3,3631.4,2.65186774]
[1733190333433,0.0272,3632.3,3631.8,3.0]
[1733190333596,0.0272,3632.3,3631.9,0.02752757]
[1733190333799,0.0272,3632.3,3631.9,0.06453703]
[1733190335428,0.0272,3632.3,3632.1,4.5536]
[1733190335645,0.0272,3632.3,3632.1,4.58112657]